Cogmind - Beta 11.1 @@@ ROGUE MODE // 2022.07.13 @ 23:25:23 Player: Smie Result: Destroyed by Y-45 Defender with Beam Rifle Performance ------------- Evolutions (1) 500 Regions Visited (3) 600 Robots Destroyed (33) 165 Value Destroyed (762) 762 Prototype IDs (0) 0 Alien Tech Used (0) 0 Bonus (0) 0 TOTAL SCORE: 2027 Bonus ------- None Cogmind --------- Core Integrity 0/400 Matter 274/300 Energy 100/100 System Corruption 0% Temperature Cool (9) Movement Core (350) Ox6 Location -9/Materials Parts ------- > --- POWER (1) -------- (None) > --- PROPULSION (4) --- (None) > --- UTILITY (2) ------ Large Storage Unit > --- WEAPON (2) ------- (None) > --- INVENTORY (15) --- Light Ion Engine Light Ion Engine Aluminum Leg Improved Aluminum Leg Improved Aluminum Leg Improved Aluminum Leg Improved Aluminum Leg High-capacity Storage Unit High-capacity Battery (250) Medium Matter Pod (100) Structural Scanner Sensor Array Signal Interpreter Power Shielding Peak State ------------ > --- POWER ------------ Light Ion Engine > --- PROPULSION ------- Aluminum Leg Aluminum Leg Aluminum Leg Aluminum Leg > --- UTILITY ---------- Heat Sink Large Storage Unit > --- WEAPON ----------- Medium Laser Small Laser > --- INVENTORY -------- Light Ion Engine Light Ion Engine Aluminum Leg Improved Aluminum Leg Improved Aluminum Leg Improved Aluminum Leg Improved Aluminum Leg High-capacity Storage Unit High-capacity Battery Medium Matter Pod Structural Scanner Sensor Array Signal Interpreter Power Shielding Heavy Assault Rifle [Rating: 11] Favorites ----------- Power Light Ion Engine Engine Light Ion Engine Power Core Light Nuclear Core Propulsion Aluminum Leg Leg Aluminum Leg Wheel Wheel Utility Large Storage Unit Device Heat Sink Storage Large Storage Unit Weapon Small Laser Energy Gun Small Laser Ballistic Gun Assault Rifle Build | -11 -10 -10 -9 ------- Run | Scr Mat Min Mat Slots Evolved 2 | . . . 2 Power . | . . . . Propulsion 2 | . . . 2 Utility . | . . . . Weapon . | . . . . Parts Attached 33 | 6 22 . 5 Power 7 | 1 5 . 1 Engine 6 | 1 4 . 1 Core 1 | . 1 . . Reactor . | . . . . Propulsion 12 | 2 7 . 3 Treads . | . . . . Leg 8 | . 5 . 3 Wheel 4 | 2 2 . . Hover . | . . . . Flight . | . . . . Utility 4 | 1 3 . . Device 2 | . 2 . . Storage 2 | 1 1 . . Processor . | . . . . Hackware . | . . . . Protection . | . . . . Artifact . | . . . . Weapon 10 | 2 7 . 1 Energy Gun 7 | 2 5 . . Energy Cannon . | . . . . Ballistic Gun 3 | . 2 . 1 Ballistic Cannon . | . . . . Launcher . | . . . . Special Weapon . | . . . . Impact Weapon . | . . . . Slashing Weapon . | . . . . Piercing Weapon . | . . . . Special Melee Weapon . | . . . . Unidentified Prototypes . | . . . . Parts Lost 15 | . 6 . 9 Power 3 | . 2 . 1 Propulsion 6 | . 2 . 4 Utility 1 | . . . 1 Weapon 5 | . 2 . 3 Highest Loss Streak 8 | . 3 . 8 To Critical Strikes . | . . . . Average Slot Usage (%) 88 | . 89 100 78 Engine 11 | . 11 14 8 Core 1 | . 1 . . Leg 18 | . 14 28 32 Wheel 8 | . 11 . . Device 7 | . 7 14 8 Storage 13 | . 14 14 11 Energy Gun 20 | . 21 28 16 Ballistic Gun 5 | . 6 . 1 Naked Turns . | . . . . Heaviest Build 29 | 14 29 27 27 Greatest Support 40 | 20 26 20 40 Greatest Overweight (x) 6 | . 2 1 6 Average Overweight (x) 1 | . 1 1 . Largest Inventory Capacity 15 | 8 15 15 15 Average Capacity 14 | 7 14 15 15 Most Carried 15 | 7 15 15 15 Average Carried 13 | 4 14 15 14 Final Capacity 15 | 8 15 15 15 Final Carried 15 | 7 15 15 14 Class Distribution -------------------- 88% | Mutant 11% | Scavenger-Mutant Dominant Class ---------------- Mutant | -10/Materials Mutant | -10/Mines Scavenger-Mutant | -9/Materials Resources | -11 -10 -10 -9 ----------- Run | Scr Mat Min Mat Matter Collected 779 | 260 425 . 94 Remotely . | . . . . Salvage Created 1172 | 68 690 . 414 Parts 59 | 3 34 . 22 Haulers Intercepted 1 | . 1 . . Recyclers Shooed 5 | . 3 . 2 Parts Field Recycled . | . . . . Retrieved Matter . | . . . . Parts Self-Destructed . | . . . . Prevented . | . . . . Kills | -11 -10 -10 -9 ------- Run | Scr Mat Min Mat Combat Hostiles Destroyed 26 | . 16 . 10 Guns 24 | . 14 . 10 Classes Destroyed 8 | 1 5 . 2 Builder 1 | . 1 . . Hauler 1 | . 1 . . Recycler 3 | 1 1 . 1 Watcher 2 | . 2 . . Swarmer 9 | . 6 . 3 Grunt 15 | . 10 . 5 Duelist 1 | . . . 1 Sentry 1 | . . . 1 Best Kill Streak 5 | 1 5 . 5 Combat Bots Only 5 | . 5 . 4 Max Kills in Single Turn 2 | 1 1 . 2 Gunslinging 1 | . . . 1 Exploded . | . . . . Melee . | . . . . Uniques/NPCs Destroyed . | . . . . Combat | -11 -10 -10 -9 -------- Run | Scr Mat Min Mat Damage Taken 1757 | . 635 . 1122 Core 519 | . 108 . 411 Absorbed by Shields . | . . . . Regen/Repaired (Parts) 22 | . 22 . . Core Remaining (%) 78 | 100 . 56 . Volleys Fired 150 | 5 85 . 60 Largest 2 | 1 2 . 2 Hottest 100 | 50 100 . 90 Shots Fired 258 | 5 165 . 88 Gun 258 | 5 165 . 88 Cannon . | . . . . Launcher . | . . . . Special . | . . . . Kinetic 53 | . 31 . 22 Thermal 205 | 5 134 . 66 Explosive . | . . . . Electromagnetic . | . . . . Robot Hit Streak 12 | 5 12 . 11 Robot Miss Streak 6 | . 6 . 3 Penetration Max . | . . . . Secondary Targets 2 | . . . 2 Max Gunslinging Chain 1 | . . . 1 Shots Hit Robots 168 | 5 101 . 62 Core Hits 56 | 2 35 . 19 Critical Kills . | . . . . Critical Parts Destroyed . | . . . . Critical Strikes 8 | 1 3 . 4 Burn 8 | 1 3 . 4 Melee Attacks . | . . . . Impact . | . . . . Slashing . | . . . . Piercing . | . . . . Sneak Attacks . | . . . . Combat Hostiles . | . . . . Follow-up Attacks . | . . . . Damage Inflicted 2066 | 61 1215 . 790 Guns 2066 | 61 1215 . 790 Cannons . | . . . . Explosions . | . . . . Melee . | . . . . Ramming . | . . . . Kinetic 473 | . 244 . 229 Thermal 1593 | 61 971 . 561 Explosive . | . . . . Electromagnetic . | . . . . Impact . | . . . . Slashing . | . . . . Piercing . | . . . . Highest Corruption 3 | . 3 3 . Average Corruption 2 | . 2 3 . Corruption Purged . | . . . . Corruption Blocked . | . . . . Effects 22 | . 20 2 . Message Errors 3 | . 3 . . Matter Fused 7 | . 5 2 . Heat Flow Errors 5 | . 5 . . Energy Discharges 2 | . 2 . . Parts Rejected 1 | . 1 . . Data Loss (minor) 2 | . 2 . . Alerts 2 | . 2 . . Overload Shots . | . . . . Overflow Damage . | . . . . Projectiles . | . . . . Explosions . | . . . . Melee . | . . . . Knockbacks . | . . . . Impact . | . . . . Kinetic . | . . . . Secondary . | . . . . Self-Inflicted Damage . | . . . . Shots . | . . . . Rammed . | . . . . Targets Rammed . | . . . . Kicked . | . . . . Crushed . | . . . . Highest Temperature 426 | 50 426 . 40 Average Temperature 90 | 26 107 . 11 Received Heat Transfer 654 | . 276 . 378 Effects 3 | . 3 . . Energy Bleed 1 | . 1 . . Short Circuit 1 | . 1 . . Damage (minor) 1 | . 1 . . Siege Activations . | . . . . Robots Corrupted . | . . . . Combat Hostiles . | . . . . Parts Fried . | . . . . Impact Corruptions . | . . . . Robots Melted 2 | . 2 . . Combat Hostiles 2 | . 2 . . Parts Melted 11 | . 5 . 6 Heat Transferred 4759 | 259 2705 . 1795 Parts Sabotaged . | . . . . Parts Stolen . | . . . . Parts Stripped . | . . . . Power Chain Reactions . | . . . . Missiles Intercepted . | . . . . Alert | -11 -10 -10 -9 ------- Run | Scr Mat Min Mat Peak Influence 220 | 5 193 52 220 Initial 52 | . 3 52 20 Average 72 | 1 62 52 139 Maximum Alert Level 1 | . . . 1 Low Security (%) 94 | 100 100 100 69 Level 1 5 | . . . 30 Level 2 . | . . . . Level 3 . | . . . . Level 4 . | . . . . Level 5 . | . . . . High Security . | . . . . Max Security . | . . . . Squads Dispatched 4 | . 4 . . Investigation 1 | . 1 . . Extermination . | . . . . Reinforcement 3 | . 3 . . Assault . | . . . . Garrison . | . . . . Intercept . | . . . . Searches Triggered . | . . . . Construction Impeded . | . . . . Haulers Reinforced . | . . . . Active Scanning Responses . | . . . . Cargo Convoy Interrupts . | . . . . Stealth | -11 -10 -10 -9 --------- Run | Scr Mat Min Mat Distress Signals 2 | . . . 2 Communications Jammed . | . . . . Distress Signals . | . . . . Times Spotted 44 | . 28 . 16 Peak Tracking Total 7 | . 5 . 7 Tactical Retreats . | . . . . Traps | -11 -10 -10 -9 ------- Run | Scr Mat Min Mat Traps Triggered 4 | . 4 . . Indirectly . | . . . . Trap Hack Attempts . | . . . . Triggered . | . . . . Disarmed . | . . . . Reprogrammed . | . . . . Reused . | . . . . Traps Extracted . | . . . . Installed . | . . . . Triggered . | . . . . Machines | -11 -10 -10 -9 ---------- Run | Scr Mat Min Mat Machines Disabled . | . . . . Max in Single Turn . | . . . . Machines Sabotaged . | . . . . Garrisons Compromised . | . . . . Overloaded Fab Kills . | . . . . Hacking | -11 -10 -10 -9 --------- Run | Scr Mat Min Mat Machines Accessed 6 | . 4 . 2 Terminals 4 | . 3 . 1 Fabricators . | . . . . Repair Stations 2 | . 1 . 1 Recycling Units . | . . . . Scanalyzers . | . . . . Garrison Access . | . . . . Total Hacks 12 | . 8 . 4 Successful 9 | . 6 . 3 Failed 3 | . 2 . 1 Catastrophic . | . . . . Database Lockouts . | . . . . Manual 6 | . 4 . 2 Terminals 8 | . 6 . 2 Fabricators . | . . . . Repair Stations 4 | . 2 . 2 Recycling Units . | . . . . Scanalyzers . | . . . . Garrison Access . | . . . . Terminal Hacks 5 | . 4 . 1 Branch Access Points 1 | . 1 . . Unreport Threat 2 | . 2 . . Locate Traps 1 | . 1 . . Zone Layout 1 | . . . 1 Fabricator Hacks . | . . . . Repair Station Hacks 3 | . 2 . 1 Scan Component 2 | . 1 . 1 Repair 1 | . 1 . . Recycling Unit Hacks . | . . . . Scanalyzer . | . . . . Garrison Access Hacks . | . . . . Unauthorized Hacks 1 | . . . 1 Terminals 1 | . . . 1 Botnet 1 | . . . 1 Fabricators . | . . . . Repair Stations . | . . . . Recycling Units . | . . . . Scanalyzers . | . . . . Garrison Access . | . . . . Data Cores Recovered . | . . . . Used . | . . . . Hacking Detections 4 | . 2 . 2 Full Trace Events . | . . . . Feedback Events . | . . . . Feedback Blocked . | . . . . Robot Schematics Acquired . | . . . . Robots Built . | . . . . Authchips . | . . . . Time . | . . . . Total Robot Build Rating . | . . . . Part Schematics Acquired . | . . . . Parts Built . | . . . . Authchips . | . . . . Time . | . . . . Total Part Build Rating . | . . . . Parts Repaired 1 | . 1 . . Time 26 | . 26 . . Parts Recycled . | . . . . Recycled Matter . | . . . . Retrieved Matter . | . . . . Retrieved Components . | . . . . Parts Scanalyzed . | . . . . Part Schematics Acquired . | . . . . Parts Damaged . | . . . . Bothacking | -11 -10 -10 -9 ------------ Run | Scr Mat Min Mat Used RIF Installer . | . . . . Robots Hacked . | . . . . Non-combat . | . . . . Combat . | . . . . Robot Hacks Applied . | . . . . Relay Couplers Released . | . . . . Fabnet Peak Effective % . | . . . . Robots Rewired . | . . . . Allies Hacked . | . . . . Hacks Repelled . | . . . . Allies | -11 -10 -10 -9 -------- Run | Scr Mat Min Mat Total Allies . | . . . . Largest Group . | . . . . Highest-Rated Group . | . . . . Highest-Rated Ally . | . . . . Total Orders . | . . . . Ally Attacks . | . . . . Total Damage . | . . . . Kills . | . . . . Allies Corrupted . | . . . . Allies Melted . | . . . . Intel | -11 -10 -10 -9 ------- Run | Scr Mat Min Mat Robot Analysis Total . | . . . . Derelict Logs Recovered 1 | . . 1 . Drone Launches . | . . . . Drone Recoveries . | . . . . Exploration | -11 -10 -10 -9 ------------- Run | Scr Mat Min Mat Turns Passed 2007 | 79 1479 109 340 Spaces Moved 1032 | 67 788 58 119 Core 15 | 4 . . 11 Treads . | . . . . Legs 469 | . 303 58 108 Wheels 548 | 63 485 . . Hover . | . . . . Flight . | . . . . Fastest Speed 50 | 50 80 190 120 Average Speed 136 | 78 137 190 141 Slowest Speed 350 | 80 260 190 350 Overloaded Moves . | . . . . Propulsion Burnouts . | . . . . Robots Hopped . | . . . . Cave-ins Triggered . | . . . . Exploration Rate (%) 33 | 4 96 17 17 Regions Visited 3 Branch Regions 1 Pre-discovered Areas 1 | . . 1 . Known Exits Taken 1 | . 1 . . Unknown Exits Taken 2 | 1 . 1 . Scrap Searched . | . . . . Spaces Dug . | . . . . Terrain Destroyed . | . . . . Melee . | . . . . Projectile . | . . . . AOE . | . . . . Terrain Rammed . | . . . . Walls Destroyed . | . . . . Machines Disabled . | . . . . Actions | -11 -10 -10 -9 --------- Run | Scr Mat Min Mat Total 1371 | 85 1024 57 205 Wait 111 | 1 93 . 17 Move 1029 | 66 787 57 119 Hop . | . . . . Pick Up 28 | 7 19 . 2 Fast Attach 16 | 6 10 . . Attach 7 | . 4 . 3 Detach 1 | . 1 . . Swap 10 | . 8 . 2 Drop 19 | . 17 . 2 Fire 150 | 5 85 . 60 Melee . | . . . . Ram . | . . . . Kick . | . . . . Crush . | . . . . Escape Stasis . | . . . . Rewire . | . . . . Trap . | . . . . Miscellaneous . | . . . . Route ------- -11/Scrapyard -10/Materials (discovered 4 exits: *Mat x3 / *Min) -10/Mines -9/Materials (discovered 1 exit: [*Min]) History --------- Turn | Location | Event 33 | -11/Scrapyard | Discovered new exit (range 16) 80 | -11/Scrapyard | Entered Materials 223 | -10/Materials | Discovered new exit (range 11) 312 | -10/Materials | Build established: Mutant 419 | -10/Materials | Discovered new exit (range 10) 596 | -10/Materials | Identified exit to Mines 607 | -10/Materials | Lost 3 parts (1p1n1w) 921 | -10/Materials | Repaired Heat Sink 1234 | -10/Materials | Discovered new exit (range 14) 1559 | -10/Materials | Entered Mines 1560 | -10/Mines | Assembled infested the area 1565 | -10/Mines | Assisted by a Guerilla fighting off Assembled 1584 | -10/Mines | Learned location of Storage (-7) 1643 | -10/Mines | Discovered new exit (range 14) 1668 | -10/Mines | Entered Materials 1668 | -9/Materials | Evolved 2 slots: Propulsion x2 1763 | -9/Materials | Discovered new exit (range 15) 1935 | -9/Materials | Core integrity fell below 50% 1967 | -9/Materials | Lost 8 parts (1p4n1u2w) 1986 | -9/Materials | Core integrity fell below 20% 2008 | -9/Materials | Destroyed by Y-45 Defender with Beam Rifle Last Messages --------------- 01923_ Med. Laser destroyed. 01924_ Aluminum Leg destroyed. 01926_ Imp. Aluminum Leg melted. 01926_ L-31 Rogue destroyed. 01930_ G-34 Mercenary destroyed. 01934_ R-06 Scavenger collects Aluminum Leg. 01936_ Lgt. Ion Engine destroyed. 01963_ G-34 Mercenary destroyed. 01967_ R-06 Scavenger collects Aluminum Leg. 01968_ Critical hit (Burn: +37). 01971_ Hvy. Assault Rifle destroyed. 01986_ R-06 Scavenger collects Melee Analysis Suite. 01987_ R-06 Scavenger inserts Assault Rifle into recycling unit. 01988_ Recycling unit begins recycling process. 01988_ K-01 Serf cleans the Integration Channel. 01988_ Integration Channel disabled. 01990_ R-06 Scavenger inserts Aluminum Leg into recycling unit. 01993_ K-01 Serf collects debris. 01996_ Acquired 40 matter. 01997_ K-01 Serf collects debris. Map ----- +----------------------------------------------------+ | ??????????????????????? ? ############## | | ???????????????????????##### #?????????# | | ???????????????????????????# #?????????# | | ???????????????????????????# #?????????# ! | | ???????????????????????????# #?????????# ! | | ???????????????????????????# #?????????# ] | | ???????????????????????###?# #?????????# | | ??????????????????????? #?#####+################# | | ???????????????????????" #????# | | ???????????????????????" ###### | | ???????????????????????" + | | ??????????????????????? ##### ##+############ | | ??????????????????????? #???# # #???? | | ????????????? ???#####+####### # "" *#???? | | ????????????? ?? # "T #???? | | ????????????? ^ + "" #???? | | ???????? ? """ """ "" # #???? | | ???????? """"""""" ^ Y" # """ #???? | | ???????? """ " "" # """ #???? | | ???????? # """ #???? | | ?????????? ###########???? | | ?????????????? #?????????????? | | ?????????????????# ####### #?????????????? | | ?????????????????# #?????## ###?????????????? | | ?????????????????# ##+########+#????#######????? | | ?????????????????# #% Y@ ###### ###### | | ?????????????????# # """ """ ## # | | ?????????????????# # "R """ ## + | | ?????????????????# %+%""" """ %## # | | ?????????????????# %# """ # # ###+## | | ?????????????????# # !##??????????????? | | ?????????????????# # #???????????????? | | ?????????????????# #############???????????????? | | ?????????????????# #???????????????????????????? | | ?????????????????# #???????????????????????????? | | ?????????????????# #???????????????????????????? | | ?????????????????# #???????????????????????????? | | ?????????????????# #???????????????????????????? | | ?????????????????# ????????????????????????????? | | ?????????????????# ????????????????????????????? | | ?????????????????# ????????????????????????????? | | ????????????????? ????????????????????????????? | | ????????????????? ????????????????????????????? | | ????????????????? ????????????????????????????? | | ?????????????????? ????????????????????????????? | | ?????????????????????????????????????????????????? | | ?????????????????????????????????????????????????? | | ?????????????????????????????????????????????????? | | ?????????????????????????????????????????????????? | | ?????????????????????????????????????????????????? | +----------------------------------------------------+ Best States ------------- Heat Dissipation 38 Energy Generation 14 Energy Capacity 250 Matter Stores 300 Matter Capacity 300 Sight Range 16 Terrain Scan Density 10 Evasion (%) 55 Item Schematics ----------------- None Robot Schematics ------------------ None Fabricated ------------ Nothing Alien Tech Used ----------------- None Achievements -------------- None Challenges ------------ None Game ------ Seed SpikedFactoryCorpse Manual? 0 Play Time 00:22:20 Cumulative 102.7 hours Start 2022.07.13 @ 23:02:49 End 2022.07.13 @ 23:25:23 Sessions 1 Manual Loads 0 Difficulty Rogue Special Mode None Game No. 74 Rogue 55 Adventurer 16 Explorer 3 Win Type - Total 3 Types 3/0/0/0/0/0/0/0/0 Lore% 48 Gallery% 53 Achievement% 43 Wizard Run 0 Options --------- ASCII 1 Keyboard 1 Movement Numpad Keybinds 0 Fullscreen 0 Font 16/Terminus Map View 76x50 Tactical HUD 1 Map Filters NONE Filters NONE Steam X RUN: 6d181334-3cb9-4cae-a6b9-0ae7d6e37a13